bitfinex/quotes_BTCUSD_20241013
["timestamp","ask_amount","ask_price","bid_price","bid_amount"]
[1728861859676,0.00164,62818.0,62817.0,0.39937045]
[1728861859906,0.00164,62818.0,62817.0,0.3993705]
[1728861860160,0.00164,62818.0,62817.0,0.22228263]
[1728861860417,0.00164,62818.0,62817.0,0.34866481]
[1728861860648,0.00164,62818.0,62817.0,0.1921772]
[1728861860649,0.17444,62818.0,62817.0,0.1921772]
[1728861861110,0.17444,62818.0,62817.0,0.1961072]
[1728861861336,0.17444,62818.0,62817.0,0.2101072]
[1728861861577,0.17444,62818.0,62817.0,0.2231072]
[1728861862074,0.17444,62818.0,62817.0,0.2091072]
[1728861862310,0.17444,62818.0,62817.0,0.2211072]
[1728861864290,0.17444,62818.0,62817.0,0.0299852]
[1728861864521,0.17444,62818.0,62817.0,0.025]
[1728861869769,0.17444,62818.0,62817.0,0.184192]
[1728861870270,0.17444,62818.0,62817.0,0.32850418]
[1728861871479,0.17444,62818.0,62817.0,0.216122]
[1728861878686,0.17444,62818.0,62817.0,0.22110742]
[1728861884738,0.17444,62818.0,62817.0,0.3334896]
[1728861885440,0.17444,62818.0,62817.0,0.32850418]
[1728861886907,0.33363,62818.0,62817.0,0.03566178]
[1728861887143,0.33863,62818.0,62817.0,0.03566178]
[1728861887600,0.33863,62818.0,62817.0,0.013]
[1728861887825,0.159201,62814.0,62809.0,0.160032]
[1728861888055,0.159201,62814.0,62810.0,0.160028]
[1728861888305,0.1693,62813.0,62811.0,0.01068147]
[1728861888533,0.1693,62812.0,62811.0,0.01068147]
[1728861890383,0.1693,62812.0,62811.0,0.01668147]
[1728861891341,0.1693,62812.0,62811.0,0.02168147]
[1728861896502,0.1693,62812.0,62811.0,0.011]
[1728861896725,0.1693,62812.0,62811.0,0.02173636]
[1728861902206,0.1693,62812.0,62811.0,0.18094336]
[1728861902993,0.16909701,62812.0,62811.0,0.18094336]
[1728861905869,0.16909701,62812.0,62811.0,0.02173636]
[1728861906831,0.32830201,62812.0,62811.0,0.02173636]
[1728861907073,0.16909701,62812.0,62811.0,0.02173636]
[1728861909928,0.32830201,62812.0,62811.0,0.02173636]
[1728861910181,0.32830201,62812.0,62811.0,0.011]
[1728861910182,0.33330201,62812.0,62811.0,0.011]
[1728861911193,0.33330201,62812.0,62811.0,0.006]
[1728861911452,0.17409701,62812.0,62811.0,0.006]
[1728861911695,0.17409701,62812.0,62810.0,0.00082]
[1728861911696,0.164207,62811.0,62810.0,0.00082]
[1728861912424,0.005,62811.0,62810.0,0.00082]
[1728861912648,0.164207,62811.0,62810.0,0.00082]
[1728861913120,0.005,62811.0,62810.0,0.00382]
[1728861914089,0.164207,62811.0,62810.0,0.03152602]
[1728861914320,0.164207,62811.0,62810.0,0.00382]
[1728861915534,0.19403823,62812.0,62810.0,0.00382]
[1728861915783,0.19567823,62812.0,62810.0,0.163029]
[1728861916034,0.19567823,62812.0,62810.0,0.00382]
[1728861916503,0.19567823,62812.0,62810.0,0.00182]
[1728861916740,0.19567823,62812.0,62810.0,0.00282]
[1728861917195,0.19567823,62812.0,62810.0,0.00182]
[1728861918190,0.19567823,62812.0,62811.0,0.01073181]
[1728861919394,0.19567823,62812.0,62811.0,0.01273181]
[1728861920796,0.19567823,62812.0,62811.0,0.01373181]
[1728861921486,0.17073701,62812.0,62811.0,0.01373181]
[1728861921943,0.17073701,62812.0,62811.0,0.04271061]
[1728861923962,0.32994201,62812.0,62811.0,0.04271061]
[1728861924195,0.32994201,62812.0,62811.0,0.01373181]
[1728861924417,0.35488297,62812.0,62811.0,0.003]
[1728861924883,0.35988297,62812.0,62811.0,0.003]
[1728861925627,0.35988297,62812.0,62811.0,0.002]
[1728861925889,0.333007,62811.0,62810.0,0.00082]
[1728861926115,0.338007,62811.0,62810.0,0.00082]
[1728861926346,0.52223101,62811.0,62810.0,0.00082]
[1728861928241,0.52223101,62811.0,62810.0,0.00182]
[1728861928679,0.52323101,62811.0,62810.0,0.00282]
[1728861928891,0.52323101,62811.0,62810.0,0.00382]
[1728861931610,0.5707801,62811.0,62810.0,0.00382]
[1728861932743,0.52323101,62811.0,62810.0,0.00382]
[1728861932959,0.57075994,62811.0,62810.0,0.00382]
[1728861933173,0.52323101,62811.0,62810.0,0.00382]
[1728861933396,0.57075815,62811.0,62810.0,0.00382]
[1728861933850,0.69455464,62811.0,62810.0,0.00382]
[1728861934556,0.6481757,62811.0,62810.0,0.00382]
[1728861935425,0.69567141,62811.0,62810.0,0.00382]
[1728861935697,0.6481757,62811.0,62810.0,0.00382]
[1728861935939,0.5564757,62811.0,62810.0,0.00382]
[1728861936125,0.52187071,62811.0,62810.0,0.00382]
[1728861937303,0.87123311,62811.0,62810.0,0.00382]
[1728861937528,0.66233817,62811.0,62810.0,0.00382]
[1728861937751,0.74563503,62811.0,62810.0,0.00382]
[1728861937943,0.7456578,62811.0,62810.0,0.00382]
[1728861938213,0.84075598,62811.0,62810.0,0.00382]
[1728861939072,1.09075598,62811.0,62810.0,0.00382]
[1728861940002,0.9956578,62811.0,62810.0,0.00382]
[1728861940503,1.2341247,62811.0,62810.0,0.00382]
[1728861940732,1.2341247,62811.0,62809.0,0.00082]
[1728861940733,0.40659218,62810.0,62809.0,0.00082]
[1728861940958,0.56781619,62810.0,62809.0,0.00082]
[1728861942800,0.56781619,62810.0,62809.0,1e-06]
[1728861943038,0.99520824,62810.0,62809.0,1e-06]
[1728861943484,0.99520824,62810.0,62808.0,1e-06]
[1728861943485,0.294212,62809.0,62808.0,1e-06]
[1728861943751,0.45543601,62809.0,62808.0,1e-06]
[1728861944186,0.59766387,62809.0,62808.0,1e-06]
[1728861944406,0.64175582,62809.0,62808.0,1e-06]
[1728861944645,1.14175582,62809.0,62808.0,1e-06]
[1728861945087,1.15575582,62809.0,62808.0,0.001001]
[1728861945744,1.31198368,62809.0,62808.0,0.002001]
[1728861945974,1.41975582,62809.0,62808.0,0.002001]
[1728861949284,1.42252836,62809.0,62808.0,0.002001]
[1728861949508,1.42252836,62809.0,62808.0,1e-06]
[1728861950023,1.41975582,62809.0,62808.0,1e-06]
[1728861950700,1.41975582,62809.0,62808.0,0.000821]
[1728861951641,1.39480572,62809.0,62808.0,1e-06]
[1728861951873,1.53703358,62809.0,62808.0,1e-06]
[1728861952596,0.187263,62789.0,62788.0,0.23772356]
[1728861952817,0.56086919,62789.0,62788.0,0.23772356]
[1728861953054,0.56086919,62789.0,62774.0,0.23772356]
[1728861953055,0.48490619,62789.0,62774.0,0.23772356]
[1728861953275,0.159299,62775.0,62774.0,0.23772356]
[1728861953515,0.159299,62775.0,62772.0,0.000819]
[1728861954660,0.68425313,62775.0,62772.0,0.000819]
[1728861955382,0.52495413,62775.0,62772.0,0.000819]
[1728861955609,0.159304,62773.0,62772.0,0.000819]
[1728861955841,0.52495413,62775.0,62773.0,0.159302]
[1728861956067,0.52495413,62775.0,62772.0,0.000819]
[1728861956068,0.68425313,62775.0,62772.0,0.000819]
[1728861956297,0.68425313,62775.0,62772.0,0.160125]
[1728861956298,0.52495413,62775.0,62772.0,0.160125]
[1728861956521,0.52495413,62775.0,62772.0,0.000819]
[1728861956742,0.52495413,62775.0,62772.0,0.160124]
[1728861956963,0.001,62773.0,62772.0,0.160124]
[1728861957645,0.52495413,62775.0,62772.0,0.160124]
[1728861958311,0.52495413,62775.0,62772.0,0.163124]
[1728861958534,0.001,62773.0,62772.0,0.160124]
[1728861959030,0.001,62773.0,62772.0,0.161124]
[1728861959256,0.001,62773.0,62772.0,0.160124]
[1728861959475,0.001,62773.0,62772.0,0.161124]
[1728861959925,0.52495413,62775.0,62772.0,0.161124]
[1728861960164,0.52495413,62775.0,62772.0,0.164124]
[1728861961032,0.001,62773.0,62772.0,0.164124]
[1728861961484,0.52495413,62775.0,62772.0,0.160124]
[1728861961703,0.159297,62776.0,62772.0,0.161124]
[1728861961926,0.24272356,62778.0,62775.0,0.159298]
[1728861962151,0.159294,62777.0,62773.0,0.159302]
[1728861962603,0.159294,62777.0,62772.0,0.003819]
[1728861962604,0.159297,62776.0,62772.0,0.000819]
[1728861962867,0.56130956,62778.0,62772.0,0.000819]
[1728861963089,0.318593,62776.0,62773.0,0.00763977]
[1728861963311,0.159301,62775.0,62773.0,0.00763977]
[1728861963996,0.159296,62776.0,62773.0,0.00763977]
[1728861964663,0.18425,62776.0,62773.0,0.00763977]
[1728861965559,0.024954,62776.0,62775.0,0.27368118]
[1728861965780,0.024954,62776.0,62775.0,0.27488118]
[1728861966000,0.024954,62776.0,62775.0,0.28251044]
[1728861967379,0.025954,62776.0,62775.0,0.28251044]
[1728861967829,0.026954,62776.0,62775.0,0.28851044]
[1728861970546,0.026954,62776.0,62775.0,0.29349949]
[1728861970770,0.026954,62776.0,62775.0,0.2934995]
[1728861971444,0.002,62776.0,62775.0,0.2934995]
[1728861971882,0.002,62776.0,62775.0,0.28851044]
[1728861972322,0.002,62776.0,62775.0,0.29349954]
[1728861974221,0.002,62776.0,62775.0,0.29029954]
[1728861982275,0.002,62776.0,62775.0,0.40468172]
[1728861982497,0.002,62776.0,62775.0,0.59903573]
[1728861982721,0.002,62776.0,62775.0,0.76324555]
[1728861982943,0.002,62776.0,62775.0,0.65086337]
[1728861983161,0.23772356,62788.0,62777.0,0.002]
[1728861983384,0.23772356,62788.0,62787.0,0.27165018]
[1728861983603,0.23772356,62788.0,62787.0,0.27663928]
[1728861983847,0.23772356,62788.0,62787.0,0.28421042]
[1728861984077,0.23772356,62796.0,62790.0,0.318519]
[1728861984321,0.40196856,62796.0,62795.0,0.11238218]
[1728861984562,0.23772356,62796.0,62795.0,0.11238218]
[1728861984773,0.0249475,62796.0,62795.0,0.11993581]
[1728861985003,0.0249475,62796.0,62795.0,0.27918381]
[1728861985469,0.23772356,62804.0,62803.0,0.159228]
[1728861985697,0.23772356,62804.0,62803.0,0.39147564]
[1728861985961,0.23772356,62804.0,62803.0,0.27909346]
[1728861986192,0.02494529,62806.0,62805.0,0.159222]
[1728861986637,0.02494529,62806.0,62805.0,0.1667009]
[1728861987530,0.02494529,62806.0,62805.0,0.1717009]
[1728861988182,0.02494529,62806.0,62805.0,0.1667009]
[1728861988646,0.02594529,62806.0,62805.0,0.1667009]
[1728861989092,0.02494529,62806.0,62805.0,0.1667009]
[1728861989542,0.02694529,62806.0,62805.0,0.1747009]
[1728861991394,0.002,62806.0,62805.0,0.1747009]
[1728861995636,0.002,62806.0,62805.0,0.28708308]
[1728861997543,0.002,62806.0,62805.0,0.0154789]
[1728861997771,0.002,62806.0,62805.0,0.0162989]
[1728861997772,0.1832,62806.0,62805.0,0.0162989]
[1728861997996,0.1832,62806.0,62805.0,0.00882]
[1728861998220,0.1832,62806.0,62805.0,0.01966247]
[1728861998472,0.34242,62806.0,62805.0,0.00882]
[1728861998739,0.1832,62806.0,62805.0,0.01966247]
[1728861998958,0.1832,62806.0,62805.0,0.00882]
[1728861999210,0.1832,62806.0,62805.0,0.01966247]
[1728861999439,0.1832,62806.0,62805.0,0.13204465]
[1728861999664,0.1832,62806.0,62805.0,0.01966247]
[1728861999665,0.34242,62806.0,62805.0,0.01966247]
[1728862000108,0.1832,62806.0,62805.0,0.00882]
[1728862000332,0.1832,62806.0,62805.0,0.12120218]
[1728862000781,0.1832,62806.0,62805.0,0.13206707]
[1728862001460,0.1832,62806.0,62805.0,0.29128907]
[1728862002912,0.1832,62806.0,62805.0,0.13206707]
[1728862004573,0.20814283,62806.0,62805.0,0.13206707]
[1728862011740,0.1832,62806.0,62805.0,0.13206707]
[1728862013316,0.1832,62806.0,62805.0,0.13705379]
[1728862013975,0.1832,62806.0,62805.0,0.13206707]
[1728862014229,0.1832,62806.0,62805.0,0.13705379]
[1728862014474,0.20814287,62806.0,62805.0,0.13705379]
[1728862015872,0.20814287,62806.0,62805.0,0.29627579]
[1728862016326,0.20814287,62806.0,62805.0,0.13705379]
[1728862017937,0.20814287,62806.0,62805.0,0.2962759]
[1728862018186,0.02694287,62806.0,62805.0,0.18389359]
[1728862021578,0.002,62806.0,62805.0,0.18389359]
[1728862026244,0.1761,62806.0,62805.0,0.02467159]
[1728862026463,0.33532,62806.0,62805.0,0.02467159]
[1728862026934,0.1761,62806.0,62805.0,0.02467159]
[1728862028060,0.33532,62806.0,62805.0,0.01968489]
[1728862028297,0.33532,62806.0,62805.0,0.02467174]
[1728862028789,0.33532,62806.0,62805.0,0.01968489]
[1728862029274,0.1761,62806.0,62805.0,0.01968489]
[1728862029521,0.1761,62806.0,62805.0,0.02467175]
[1728862031017,0.1761,62806.0,62805.0,0.18389375]
[1728862031277,0.1761,62806.0,62805.0,0.29627593]
[1728862033504,0.1761,62806.0,62805.0,0.18389375]
[1728862034434,0.20104263,62806.0,62805.0,0.18389375]
[1728862035870,0.20104263,62806.0,62805.0,0.18389345]
[1728862036107,0.02694263,62806.0,62805.0,0.18389345]
[1728862039463,0.02694263,62806.0,62805.0,0.17890689]
[1728862039677,0.02694263,62806.0,62805.0,0.18389338]
[1728862041485,0.002,62806.0,62805.0,0.18389338]
[1728862043827,0.002,62806.0,62805.0,0.17890689]
[1728862044509,0.002,62806.0,62805.0,0.4199076]
[1728862044735,0.00164,62808.0,62805.0,0.4199076]
[1728862044736,0.00164,62808.0,62807.0,0.193147]
[1728862044962,2.0,62810.0,62809.0,0.002]
[1728862044963,1.56590357,62810.0,62809.0,0.002]
[1728862045182,1.56590357,62810.0,62809.0,0.63210799]
[1728862045403,1.56590357,62810.0,62809.0,0.64291071]
[1728862045879,1.44857291,62810.0,62809.0,0.64291071]
[1728862046135,1.44857291,62810.0,62809.0,0.64491071]
[1728862046358,1.44857291,62810.0,62809.0,0.89294263]
[1728862046579,1.38208567,62810.0,62809.0,0.64491071]
[1728862046802,1.38208567,62810.0,62809.0,0.66389569]
[1728862047022,1.38208567,62810.0,62809.0,0.65891071]
[1728862047239,1.30585254,62810.0,62809.0,0.65891071]
[1728862047491,1.30585254,62810.0,62809.0,0.64989563]
[1728862047727,1.30685254,62810.0,62809.0,0.7006223]
[1728862047957,1.30685254,62810.0,62809.0,0.65289563]
[1728862048398,1.30685254,62810.0,62809.0,0.66389563]
[1728862048399,1.30585254,62810.0,62809.0,0.66389563]
[1728862049052,1.30685254,62810.0,62809.0,0.66089563]
[1728862049265,1.30685254,62810.0,62809.0,0.67489563]
[1728862049691,1.30585254,62810.0,62809.0,0.66163717]
[1728862049977,1.30585254,62810.0,62809.0,0.67563717]
[1728862050206,1.30585254,62810.0,62809.0,0.49910265]
[1728862051582,1.30685254,62810.0,62809.0,0.49811773]
[1728862051822,1.30685254,62810.0,62809.0,0.49291773]
[1728862052040,1.30685254,62810.0,62809.0,0.47491773]
[1728862052041,1.30585254,62810.0,62809.0,0.47491773]
[1728862052267,1.48415254,62810.0,62809.0,0.47491773]
[1728862052479,1.48515254,62810.0,62809.0,0.49291773]
[1728862052713,1.48515254,62810.0,62809.0,0.37891773]
[1728862052942,1.48415254,62810.0,62809.0,0.21595218]
[1728862053161,1.48515254,62810.0,62809.0,0.18802218]
[1728862053372,1.48515254,62810.0,62809.0,0.17402218]
[1728862053591,1.48515254,62810.0,62809.0,0.18802218]
[1728862055146,1.48515254,62810.0,62809.0,0.19702218]
[1728862055845,1.48515254,62810.0,62809.0,0.19302218]
[1728862055846,1.48415254,62810.0,62809.0,0.19302218]
[1728862056071,1.48515254,62810.0,62809.0,0.19602218]
[1728862056554,1.48415254,62810.0,62809.0,0.03381018]
[1728862057044,1.64436254,62810.0,62809.0,0.026]
[1728862058181,1.64936254,62810.0,62809.0,0.026]
[1728862058399,1.64936254,62810.0,62809.0,0.003819]
[1728862058637,1.49179054,62810.0,62809.0,0.006819]
[1728862058861,1.65000054,62810.0,62809.0,0.003819]
[1728862059116,1.65000054,62810.0,62809.0,0.006819]
[1728862059377,1.65000054,62810.0,62809.0,0.0174216]
[1728862059605,1.65000054,62810.0,62809.0,0.01448719]
[1728862060046,1.65000054,62810.0,62809.0,0.01748719]
[1728862060498,1.65000054,62810.0,62809.0,0.006819]
[1728862060948,1.65000054,62810.0,62809.0,0.01748719]
[1728862061171,1.65000054,62810.0,62809.0,0.006819]
[1728862062121,1.65000054,62810.0,62809.0,0.01748719]
[1728862062348,1.65000054,62810.0,62809.0,0.006819]
[1728862062581,1.65000054,62810.0,62809.0,0.01748719]
[1728862068039,1.65000054,62810.0,62809.0,0.006819]
[1728862071729,1.49079054,62810.0,62809.0,0.006819]
[1728862071934,1.49079054,62810.0,62809.0,0.01767511]
[1728862072147,1.65000054,62810.0,62809.0,0.01767511]
[1728862075909,1.49079054,62810.0,62809.0,0.01767511]
[1728862080732,1.49079054,62810.0,62809.0,0.17688711]
[1728862081354,1.48579054,62810.0,62809.0,0.17688711]
[1728862082984,1.48579054,62810.0,62809.0,0.20881711]
[1728862082985,1.30749054,62810.0,62809.0,0.20881711]
[1728862083869,1.30749054,62810.0,62809.0,0.20581711]
[1728862084084,1.30749054,62810.0,62809.0,0.20881711]
[1728862084299,1.30849054,62810.0,62809.0,0.20581711]
[1728862084529,1.30849054,62810.0,62809.0,0.21981711]
[1728862084787,1.30849054,62810.0,62809.0,0.20281711]
[1728862084788,1.30749054,62810.0,62809.0,0.20281711]
[1728862084985,1.30749054,62810.0,62809.0,0.21488342]
[1728862085195,1.30749054,62810.0,62809.0,0.23188342]
[1728862085196,1.30849054,62810.0,62809.0,0.23188342]
[1728862090133,1.30849054,62810.0,62809.0,0.21981711]
[1728862090348,1.63490054,62810.0,62809.0,0.02867511]
[1728862090567,1.63490054,62810.0,62809.0,0.017819]
[1728862091008,1.63490054,62810.0,62809.0,0.02851629]
[1728862091234,1.63490054,62810.0,62809.0,0.02551629]
[1728862091441,1.63390054,62810.0,62809.0,0.01151629]
[1728862091666,1.63490054,62810.0,62809.0,0.01751629]
[1728862091884,1.63490054,62810.0,62809.0,0.02251629]
[1728862092121,1.63490054,62810.0,62809.0,0.01751629]
[1728862092366,1.63490054,62810.0,62809.0,0.02251629]
[1728862092367,1.47569054,62810.0,62809.0,0.02251629]
[1728862093054,1.63390054,62810.0,62809.0,0.01651629]
[1728862093271,1.63490054,62810.0,62809.0,0.011819]
[1728862093487,1.47569054,62810.0,62809.0,0.011819]
[1728862093947,1.63490054,62810.0,62809.0,0.011819]
[1728862094386,1.65984138,62810.0,62809.0,0.011819]
[1728862095544,1.50063138,62810.0,62809.0,0.011819]
[1728862098207,1.50063138,62810.0,62809.0,0.02251629]
[1728862099968,1.50063138,62810.0,62809.0,0.011819]
[1728862100201,1.50063138,62810.0,62809.0,0.02251629]
[1728862101578,1.47569054,62810.0,62809.0,0.02251629]
[1728862102969,1.47569054,62810.0,62809.0,0.011819]
[1728862103173,1.47569054,62810.0,62809.0,0.02256369]
[1728862103894,1.63990054,62810.0,62809.0,0.011819]
[1728862104568,1.66484201,62810.0,62809.0,0.011819]
[1728862115554,1.63990054,62810.0,62809.0,0.011819]
[1728862118517,1.66484216,62810.0,62809.0,0.011819]
[1728862121635,1.63990054,62810.0,62809.0,0.011819]
[1728862122077,1.98775752,62810.0,62809.0,0.011819]
[1728862122298,2.14592783,62810.0,62809.0,0.011819]
[1728862122539,2.2012772,62810.0,62809.0,0.011819]
[1728862122749,2.2012772,62810.0,62809.0,0.000819]
[1728862122750,2.08129486,62810.0,62809.0,0.000819]
[1728862123170,2.0837729,62810.0,62809.0,0.000819]
[1728862123634,2.20068679,62810.0,62809.0,0.000819]
[1728862123852,2.20868679,62810.0,62809.0,0.002819]
[1728862124524,2.23363216,62810.0,62809.0,0.002819]
[1728862125440,2.11471827,62810.0,62809.0,0.002819]
[1728862126591,2.20979907,62810.0,62809.0,0.002819]
[1728862128444,2.11471827,62810.0,62809.0,0.002819]
[1728862129110,1.95706992,62810.0,62809.0,0.002819]
[1728862129335,2.11461532,62810.0,62809.0,0.002819]
[1728862129556,1.95706992,62810.0,62809.0,0.002819]
[1728862129999,2.00535524,62810.0,62809.0,0.002819]
[1728862130192,1.98159465,62810.0,62809.0,0.002819]
[1728862130702,1.93406992,62810.0,62809.0,0.002819]
[1728862131558,1.90912455,62810.0,62809.0,0.002819]
[1728862134502,1.93406884,62810.0,62809.0,0.002819]
[1728862140927,1.98161797,62810.0,62809.0,0.002819]
[1728862141139,1.98161804,62810.0,62809.0,0.002819]
[1728862141580,1.93406884,62810.0,62809.0,0.002819]
[1728862141792,1.90912455,62810.0,62809.0,0.002819]
[1728862143579,1.95667525,62810.0,62809.0,0.002819]
[1728862143797,1.90912455,62810.0,62809.0,0.002819]
[1728862144026,1.95667751,62810.0,62809.0,0.002819]
[1728862144246,1.90912455,62810.0,62809.0,0.002819]
[1728862144895,2.00538725,62810.0,62809.0,0.002819]
[1728862145124,2.00540223,62810.0,62809.0,0.002819]
[1728862145570,1.93406936,62810.0,62809.0,0.002819]
[1728862146040,2.00540486,62810.0,62809.0,0.002819]
[1728862148503,1.93406936,62810.0,62809.0,0.002819]
[1728862148727,2.00544846,62810.0,62809.0,0.002819]
[1728862149183,2.04645154,62810.0,62809.0,0.002819]
[1728862149621,1.77284535,62810.0,62809.0,0.002819]
[1728862151726,1.74790054,62810.0,62809.0,0.002819]
[1728862153738,1.31649054,62810.0,62809.0,0.002819]
[1728862154429,1.31649054,62810.0,62809.0,0.01016086]
[1728862154666,1.33243287,62810.0,62809.0,0.000819]
[1728862154924,1.33843287,62810.0,62809.0,0.01016086]
[1728862155104,1.34343287,62810.0,62809.0,0.01016086]
[1728862155367,1.50264287,62810.0,62809.0,0.01016086]
[1728862156090,1.50164287,62810.0,62809.0,0.00916086]
[1728862156310,1.49664287,62810.0,62809.0,0.01316086]
[1728862156534,1.49764287,62810.0,62809.0,0.01916086]
[1728862156979,1.49264287,62810.0,62809.0,0.01916086]
[1728862157199,1.33343287,62810.0,62809.0,0.01916086]
[1728862157425,1.33343287,62810.0,62809.0,0.011819]
[1728862157684,1.30849054,62810.0,62809.0,0.47656719]
[1728862157900,1.30849054,62810.0,62809.0,0.48508139]
[1728862158118,1.30849054,62810.0,62809.0,0.48865915]
[1728862158371,1.30849054,62810.0,62809.0,0.50063165]
[1728862158842,1.30849054,62810.0,62809.0,0.51630932]
[1728862159039,1.30849054,62810.0,62809.0,0.51130932]
[1728862159516,1.30849054,62810.0,62809.0,0.52530932]
[1728862159741,1.30849054,62810.0,62809.0,0.23482546]
[1728862159957,1.30749054,62810.0,62809.0,0.22882546]
[1728862160174,1.30849054,62810.0,62809.0,0.24182546]
[1728862160385,1.30849054,62810.0,62809.0,0.19792296]
[1728862160600,1.30849054,62810.0,62809.0,0.18492296]
[1728862160601,1.30749054,62810.0,62809.0,0.18492296]
[1728862161013,1.30849054,62810.0,62809.0,0.22985296]
[1728862165513,1.47759054,62810.0,62809.0,0.22985296]
[1728862166003,1.77412351,62810.0,62809.0,0.03871096]
[1728862166213,1.77912351,62810.0,62809.0,0.03871096]
[1728862166438,1.66574133,62810.0,62809.0,0.014819]
[1728862167124,1.50653133,62810.0,62809.0,0.014819]
[1728862167304,1.50653133,62810.0,62809.0,0.027819]
[1728862167305,1.66674133,62810.0,62809.0,0.027819]
[1728862167511,1.66674133,62810.0,62809.0,0.03864874]
[1728862167720,1.66574133,62810.0,62809.0,0.02564874]
[1728862168147,1.66574133,62810.0,62809.0,0.014819]
[1728862168361,1.66574133,62810.0,62809.0,0.02564874]
[1728862168582,1.66574133,62810.0,62809.0,0.014819]
[1728862168827,1.66574133,62810.0,62809.0,0.01164874]
[1728862169048,1.66674133,62810.0,62809.0,0.005819]
[1728862170184,1.66674133,62810.0,62809.0,0.009819]
[1728862170392,1.66674133,62810.0,62809.0,0.005819]
[1728862170850,1.66674133,62810.0,62809.0,0.009819]
[1728862171741,1.64180054,62810.0,62809.0,0.009819]
[1728862174378,1.48259054,62810.0,62809.0,0.009819]
[1728862174604,1.48259054,62810.0,62809.0,0.169031]
[1728862174605,1.50753236,62810.0,62809.0,0.169031]
[1728862174852,1.50753236,62810.0,62809.0,0.009819]
[1728862175071,1.50753236,62810.0,62809.0,0.02069052]
[1728862178279,1.66674236,62810.0,62809.0,0.02069052]
[1728862178725,1.50753236,62810.0,62809.0,0.02069052]
[1728862181289,1.66674236,62810.0,62809.0,0.02069052]
[1728862181763,1.64180054,62810.0,62809.0,0.02069052]
[1728862181988,1.64180054,62810.0,62809.0,0.009819]
[1728862184757,1.66674239,62810.0,62809.0,0.009819]
[1728862185434,1.50753239,62810.0,62809.0,0.009819]
[1728862185656,1.50753239,62810.0,62809.0,0.02069052]
[1728862186121,1.50523239,62810.0,62809.0,0.17990252]
[1728862190816,1.50023239,62810.0,62809.0,0.17990252]
[1728862191746,1.47529054,62810.0,62809.0,0.17990252]
[1728862192387,1.48029054,62810.0,62809.0,0.17990252]
[1728862193830,1.47529054,62810.0,62809.0,0.17990252]
[1728862194519,1.50023253,62810.0,62809.0,0.17990252]
[1728862194749,1.50023253,62810.0,62809.0,0.18488892]
[1728862194975,1.50023253,62810.0,62809.0,0.17990252]
[1728862195199,1.50023253,62810.0,62809.0,0.18488892]
[1728862195423,1.50023253,62810.0,62809.0,0.17990252]
[1728862195648,1.33113253,62810.0,62809.0,0.18488892]
[1728862199252,1.33113253,62810.0,62809.0,0.17990252]
[1728862200436,1.42773253,62810.0,62809.0,0.17990252]
[1728862201638,1.40279054,62810.0,62809.0,0.17990252]
[1728862202135,1.40279054,62810.0,62809.0,0.18488885]
[1728862202370,1.40279054,62810.0,62809.0,0.17990252]
[1728862203809,1.30619054,62810.0,62809.0,0.18488884]
[1728862204041,1.29891104,62810.0,62809.0,0.37804285]
[1728862204861,1.29891104,62810.0,62809.0,0.37304285]
[1728862204862,1.29791104,62810.0,62809.0,0.37304285]
[1728862206211,1.29891104,62810.0,62809.0,0.38604285]
[1728862206688,1.29891104,62810.0,62809.0,0.38204285]
[1728862206935,1.29791104,62810.0,62809.0,0.44824285]
[1728862207179,1.29791104,62810.0,62809.0,0.47524285]
[1728862207180,1.29891104,62810.0,62809.0,0.47524285]
[1728862207427,1.29891104,62810.0,62809.0,0.57462503]
[1728862207667,1.29891104,62810.0,62809.0,0.58862503]
[1728862209361,1.29891104,62810.0,62809.0,0.58862469]
[1728862209829,1.29891104,62810.0,62809.0,0.50942471]
[1728862210604,1.29891104,62810.0,62809.0,0.50443871]
[1728862210835,1.29891104,62810.0,62809.0,0.50643871]
[1728862211518,1.29891104,62810.0,62809.0,0.50443871]
[1728862217235,1.29891104,62810.0,62809.0,0.50942456]
[1728862217471,1.47521104,62810.0,62809.0,0.23581837]
[1728862218146,1.47521104,62810.0,62809.0,0.20388837]
[1728862218867,1.47521104,62810.0,62809.0,0.23581837]
[1728862220275,1.47521104,62810.0,62809.0,0.23083252]
[1728862220499,1.47521104,62810.0,62809.0,0.23581855]
[1728862220717,1.47521104,62810.0,62809.0,0.23581856]
[1728862221888,1.47521104,62810.0,62809.0,0.39704257]
[1728862222134,1.29891104,62810.0,62809.0,0.39205653]
[1728862222609,1.29891104,62810.0,62809.0,0.39405653]
[1728862223080,1.29891104,62810.0,62809.0,0.39904225]
[1728862223575,1.29891104,62810.0,62809.0,0.51142443]
[1728862223819,1.29891104,62810.0,62809.0,0.39605653]
[1728862224104,1.29891104,62810.0,62809.0,0.61094263]
[1728862224332,1.29891104,62810.0,62809.0,0.56318426]
[1728862224818,1.29891104,62810.0,62809.0,0.72331037]
[1728862225047,1.29891104,62810.0,62809.0,0.67556644]
[1728862225308,1.29891104,62810.0,62809.0,0.77356644]
[1728862225546,1.29891104,62810.0,62809.0,0.8471924]
[1728862225790,1.29791104,62810.0,62809.0,0.76156644]
[1728862226033,1.19904672,62810.0,62809.0,0.74756644]
[1728862226282,1.0115666,62810.0,62809.0,2.14943003]
[1728862226519,0.02135757,62810.0,62809.0,2.27200839]
[1728862226763,0.02035757,62810.0,62809.0,2.30774678]
[1728862227001,0.02135757,62810.0,62809.0,2.33574678]
[1728862227257,0.02135757,62810.0,62809.0,2.2233646]
[1728862227733,0.02135757,62810.0,62809.0,2.2093646]
[1728862228207,0.02135757,62810.0,62809.0,2.32174678]
[1728862228468,0.02135757,62810.0,62809.0,1.97060024]
[1728862228469,0.01101363,62810.0,62809.0,1.97060024]
[1728862228713,0.01101363,62810.0,62809.0,2.2093646]
[1728862229210,0.01101363,62810.0,62809.0,2.31870385]
[1728862229450,0.01101363,62810.0,62809.0,2.30470385]
[1728862229912,0.01101363,62810.0,62809.0,2.31870385]
[1728862230428,0.01101363,62810.0,62809.0,2.04904403]
[1728862230667,0.01101363,62810.0,62809.0,1.91850309]
[1728862230903,0.01101363,62810.0,62809.0,0.61843871]
[1728862231367,0.01101363,62810.0,62809.0,0.60643871]
[1728862231601,0.01101363,62810.0,62809.0,0.62043871]
[1728862231829,0.01101363,62810.0,62809.0,0.73282089]
[1728862232058,0.01101363,62810.0,62809.0,0.69082089]
[1728862232545,0.01101363,62810.0,62809.0,0.71882089]
[1728862233718,0.01101363,62810.0,62809.0,0.76648527]
[1728862233951,0.01101363,62810.0,62809.0,0.66076327]
[1728862234418,0.01101363,62810.0,62809.0,0.64676327]
[1728862234647,0.01101363,62810.0,62809.0,0.66076327]